fUST/lending_fUST_20250324
["ID","MTS","AMOUNT","RATE_DAILY","PERIOD"]
[356596048,1742761842280,-865.5,0.0001452,2]
[356596049,1742761842290,-6584.86,0.0001452,2]
[356596050,1742761842299,-1087.06,0.0001452,2]
[356596051,1742761842309,-880.11,0.0001452,2]
[356596052,1742761842321,-1461.43,0.0001452,2]
[356596053,1742761842331,-500.0,0.0001452,2]
[356596054,1742761842341,-500.0,0.0001452,2]
[356596055,1742761842350,-738.27,0.0001452,2]
[356596056,1742761842360,-500.0,0.0001452,2]
[356596057,1742761842370,-500.0,0.0001452,2]
[356596058,1742761842379,-500.0,0.0001452,2]
[356596059,1742761842388,-500.0,0.0001452,2]
[356596060,1742761842398,-4945.29,0.0001452,2]
[356596061,1742761842407,-500.0,0.0001452,2]
[356596062,1742761842415,-521.93,0.0001452,2]
[356596063,1742761842425,-500.0,0.0001452,2]
[356596064,1742761842434,-500.0,0.0001452,2]
[356596065,1742761842447,-500.0,0.0001452,2]
[356596066,1742761842456,-500.0,0.0001452,2]
[356596067,1742761842466,-858.46,0.0001452,2]
[356596068,1742761842475,-1525.07,0.0001452,2]
[356596069,1742761842484,-500.0,0.0001452,2]
[356596070,1742761842493,-500.0,0.0001452,2]
[356596071,1742761842502,-584.59,0.0001452,2]
[356596072,1742761842512,-500.0,0.0001452,2]
[356596073,1742761842521,-150.89016876,0.00014573,2]
[356596074,1742761842530,-500.0,0.00014794,2]
[356596075,1742761842540,-500.0,0.00014794,2]
[356596076,1742761842549,-500.0,0.00014794,2]
[356596077,1742761842558,-500.0,0.00014794,2]
[356596078,1742761842568,-345.07906078,0.00014794,2]
[356596079,1742761842577,-500.0,0.00014794,2]
[356596080,1742761842587,-500.0,0.00014794,2]
[356596081,1742761842596,-500.0,0.00014794,2]
[356596082,1742761842605,-520.4,0.00014794,2]
[356596083,1742761842614,-500.0,0.00014794,2]
[356596084,1742761842624,-500.0,0.00014794,2]
[356596085,1742761842633,-1058.4,0.00014794,2]
[356596086,1742761842643,-500.0,0.00014794,2]
[356596087,1742761842653,-629.73,0.00014794,2]
[356596088,1742761842663,-1107.57,0.00014794,2]
[356596089,1742761842673,-500.0,0.00014794,2]
[356596090,1742761842682,-500.0,0.00014794,2]
[356596092,1742761842693,-1049.38,0.00014794,2]
[356596094,1742761842703,-656.27,0.00014794,2]
[356596095,1742761842713,-500.0,0.00014794,2]
[356596096,1742761842724,-1363.53,0.00014794,2]
[356596098,1742761842733,-500.0,0.00014794,2]
[356596099,1742761842742,-318.74325736,0.00014794,2]
[356596102,1742761842753,-404.2121552,0.00014794,2]
[356596110,1742761843218,-500.0,0.00014246,2]
[356596111,1742761843227,-192.81393308,0.0001452,2]
[356596112,1742761843237,-95.7878448,0.00014794,2]
[356596113,1742761843247,-737.59,0.00014794,2]
[356596114,1742761843257,-500.0,0.00014794,2]
[356596115,1742761843266,-500.0,0.00014794,2]
[356596116,1742761843275,-507.4,0.00014794,2]
[356596117,1742761843284,-540.51,0.00014794,2]
[356596118,1742761843294,-676.53,0.00014794,2]
[356596119,1742761843302,-21.8102592,0.00014794,2]
[356596120,1742761846364,-1024.52473947,0.00013698,2]
[356596193,1742762836115,-300.0,0.00012805,2]
[356596194,1742762836138,-500.0,0.00012806,2]
[356596195,1742762836158,-192.47911926,0.00012806,2]
[356596196,1742762836180,-500.0,0.00012806,2]
[356596197,1742762836202,-500.0,0.00012806,2]
[356596198,1742762836224,-500.0,0.00012806,2]
[356596199,1742762836246,-500.0,0.00012806,2]
[356596200,1742762836270,-193.69048465,0.00012806,2]
[356596201,1742762836291,-1438.07286012,0.00012807,2]
[356596229,1742763032542,-300.0,0.00012595,2]
[356596230,1742763032552,-23461.9271398,0.00012596,2]
[356596231,1742763032562,-500.0,0.000134,2]
[356596232,1742763032571,-277.27674811,0.00013597,2]
[356596233,1742763032581,-1128.20174204,0.00013598,2]
[356596234,1742763032592,-222000.0,0.00013598,2]
[356596235,1742763032602,-500.0,0.00013673,2]
[356596236,1742763032615,-597.66753732,0.00013673,2]
[356596237,1742763032625,-500.0,0.00013673,2]
[356596238,1742763032635,-500.0,0.00013673,2]
[356596239,1742763032644,-500.0,0.00013673,2]
[356596240,1742763032654,-500.0,0.00013673,2]
[356596241,1742763032664,-500.0,0.00013673,2]
[356596242,1742763032673,-500.0,0.00013673,2]
[356596243,1742763032683,-500.0,0.00013673,2]
[356596244,1742763032692,-500.0,0.00013673,2]
[356596245,1742763032702,-501.17725434,0.00013673,2]
[356596246,1742763032711,-500.0,0.00013673,2]
[356596247,1742763032721,-151.0,0.0001369,2]
[356596248,1742763032730,-1000.0,0.0001369,2]
[356596249,1742763032740,-600.0,0.0001369,2]
[356596250,1742763032750,-500.0,0.00013698,2]
[356596251,1742763032759,-500.0,0.00013698,2]
[356596252,1742763032769,-500.0,0.00013698,2]
[356596253,1742763032778,-500.0,0.00013698,2]
[356596254,1742763032788,-500.0,0.00013698,2]
[356596255,1742763032797,-216.14650004,0.00013698,2]
[356596256,1742763032806,-500.0,0.00013698,2]
[356596257,1742763032815,-500.0,0.00013698,2]
[356596258,1742763032824,-500.0,0.00013698,2]
[356596259,1742763032834,-666.96,0.00013698,2]
[356596260,1742763032843,-500.0,0.00013698,2]
[356596261,1742763032852,-500.0,0.00013698,2]
[356596262,1742763032861,-500.0,0.00013698,2]
[356596263,1742763032870,-500.0,0.00013698,2]
[356596264,1742763032880,-500.0,0.00013698,2]
[356596265,1742763032889,-500.0,0.00013698,2]
[356596266,1742763032899,-500.0,0.00013698,2]
[356596267,1742763032908,-500.0,0.00013698,2]
[356596268,1742763032920,-500.0,0.00013698,2]
[356596269,1742763032931,-500.0,0.00013698,2]
[356596270,1742763032940,-500.0,0.00013698,2]
[356596271,1742763032949,-500.0,0.00013698,2]
[356596272,1742763032959,-500.0,0.00013698,2]
[356596273,1742763032969,-500.0,0.00013698,2]
[356596274,1742763032979,-500.0,0.00013698,2]
[356596275,1742763032988,-535.59,0.00013698,2]
[356596276,1742763032998,-500.0,0.00013698,2]
[356596277,1742763033008,-583.92,0.00013698,2]
[356596278,1742763033019,-1037.88,0.00013698,2]
[356596279,1742763033029,-500.0,0.00013698,2]
[356596280,1742763033038,-630.94,0.00013698,2]
[356596281,1742763033048,-500.0,0.00013698,2]
[356596282,1742763033057,-500.0,0.00013698,2]
[356596283,1742763033068,-500.0,0.00013698,2]
[356596284,1742763033078,-500.0,0.00013698,2]
[356596285,1742763033088,-701.21,0.00013698,2]
[356596286,1742763033097,-500.0,0.00013698,2]
[356596287,1742763033107,-500.0,0.00013698,2]
[356596288,1742763033117,-500.0,0.00013698,2]
[356596289,1742763033126,-500.0,0.00013698,2]
[356596290,1742763033136,-574.01,0.00013698,2]
[356596291,1742763033146,-500.0,0.00013698,2]
[356596292,1742763033156,-705.63,0.00013698,2]
[356596293,1742763033166,-1126.35,0.00013698,2]
[356596294,1742763033176,-500.0,0.00013698,2]
[356596295,1742763033185,-500.0,0.00013698,2]
[356596296,1742763033195,-602.45,0.00013698,2]
[356596297,1742763033206,-500.0,0.00013698,2]
[356596298,1742763033216,-500.0,0.00013698,2]
[356596299,1742763033226,-500.0,0.00013698,2]
[356596300,1742763033237,-1369.5,0.00013698,2]
[356596301,1742763033247,-750.63,0.00013698,2]
[356596302,1742763033257,-500.0,0.00013698,2]
[356596303,1742763033267,-409.48352803,0.00013698,2]
[356596304,1742763033277,-500.0,0.00013698,2]
[356596305,1742763033287,-500.0,0.00013698,2]
[356596306,1742763033297,-1788.52,0.00013698,2]
[356596307,1742763033308,-500.0,0.00013698,2]
[356596308,1742763033318,-500.0,0.00013698,2]
[356596309,1742763033328,-1617.99,0.00013698,2]
[356596310,1742763033338,-500.0,0.00013698,2]
[356596311,1742763033348,-500.0,0.00013698,2]
[356596312,1742763033358,-500.0,0.00013698,2]
[356596313,1742763033368,-500.0,0.00013698,2]
[356596314,1742763033378,-500.0,0.00013698,2]
[356596315,1742763033387,-500.0,0.00013698,2]
[356596316,1742763033397,-500.0,0.00013698,2]
[356596317,1742763033407,-500.0,0.00013698,2]
[356596318,1742763033417,-500.0,0.00013698,2]
[356596319,1742763033428,-500.0,0.00013698,2]
[356596320,1742763033438,-500.0,0.00013698,2]
[356596321,1742763033448,-533.59370297,0.00013698,2]
[356596322,1742763033458,-570.87,0.00013698,2]
[356596323,1742763033467,-508.78,0.00013698,2]
[356596324,1742763033477,-500.0,0.00013698,2]
[356596325,1742763033487,-500.0,0.00013698,2]
[356596326,1742763033498,-500.0,0.00013698,2]
[356596327,1742763033508,-500.0,0.00013698,2]
[356596328,1742763033517,-500.0,0.00013698,2]
[356596329,1742763033527,-500.0,0.00013698,2]
[356596330,1742763033538,-500.0,0.00013698,2]
[356596331,1742763033548,-500.0,0.00013698,2]
[356596332,1742763033558,-500.0,0.00013698,2]
[356596333,1742763033568,-500.0,0.00013698,2]
[356596334,1742763033579,-500.0,0.00013698,2]
[356596335,1742763033589,-518.05,0.00013698,2]
[356596336,1742763033600,-500.0,0.00013698,2]
[356596337,1742763033610,-716.72,0.00013698,2]
[356596338,1742763033621,-557.86,0.00013698,2]
[356596339,1742763033631,-754.39,0.00013698,2]
[356596340,1742763033640,-500.0,0.00013698,2]
[356596341,1742763033649,-500.0,0.00013698,2]
[356596342,1742763033659,-500.0,0.00013698,2]
[356596343,1742763033670,-1410.38,0.00013698,2]
[356596344,1742763033680,-500.0,0.00013698,2]
[356596345,1742763033689,-500.0,0.00013698,2]
[356596346,1742763033698,-5069.32,0.00013698,2]
[356596347,1742763033708,-500.0,0.00013698,2]
[356596348,1742763033717,-500.0,0.00013698,2]
[356596349,1742763033727,-2448.54,0.00013698,2]
[356596350,1742763033738,-500.0,0.00013698,2]
[356596351,1742763033748,-10600.33,0.00013698,2]
[356596352,1742763033757,-500.0,0.00013698,2]
[356596353,1742763033767,-3532.6,0.00013698,2]
[356596354,1742763033777,-6551.91,0.00013698,2]
[356596355,1742763033787,-615.15,0.00013698,2]
[356596356,1742763033796,-513.9,0.00013698,2]
[356596357,1742763033806,-352.98871644,0.00013698,2]
[356596358,1742763033816,-3430.67,0.00013698,2]
[356596359,1742763033826,-1301.21,0.00013698,2]
[356596360,1742763033836,-500.0,0.00013698,2]
[356596361,1742763033846,-500.0,0.00013698,2]
[356596362,1742763033856,-500.0,0.00013698,2]
[356596363,1742763033865,-1434.57,0.00013698,2]
[356596364,1742763033875,-800.74,0.00013698,2]
[356596365,1742763033885,-1529.88,0.00013698,2]
[356596366,1742763033894,-582.13,0.00013698,2]
[356596367,1742763033904,-500.86,0.00013698,2]
[356596368,1742763033915,-1160.93,0.00013698,2]
[356596369,1742763033926,-500.0,0.00013698,2]
[356596370,1742763033936,-500.0,0.00013698,2]
[356596371,1742763033946,-137742.45,0.00013698,2]
[356596372,1742763033967,-500.0,0.00013698,2]
[356596373,1742763033978,-500.0,0.00013698,2]
[356596374,1742763033988,-468.0258622,0.00013698,2]
[356596375,1742763033998,-500.0,0.00013698,2]
[356596376,1742763034007,-13871.8,0.00013698,2]
[356596377,1742763034016,-500.0,0.00013698,2]
[356596378,1742763034026,-5251.71,0.00013698,2]
[356596379,1742763034035,-515.48,0.00013698,2]
[356596380,1742763034045,-500.0,0.00013698,2]
[356596381,1742763034054,-1423.36,0.00013698,2]
[356596382,1742763034064,-500.0,0.00013698,2]
[356596383,1742763034073,-9097.7,0.00013698,2]
[356596384,1742763034082,-500.0,0.00013698,2]
[356596385,1742763034093,-500.0,0.00013698,2]
[356596386,1742763034102,-1004.14,0.00013698,2]
[356596387,1742763034112,-500.0,0.00013698,2]
[356596388,1742763034121,-2853.25,0.00013698,2]
[356596389,1742763034131,-500.0,0.00013698,2]
[356596390,1742763034141,-2173.54,0.00013698,2]
[356596391,1742763034151,-500.0,0.00013698,2]
[356596392,1742763034161,-2612.54,0.00013698,2]
[356596393,1742763034170,-500.0,0.00013698,2]
[356596394,1742763034180,-500.0,0.00013698,2]
[356596395,1742763034190,-1699.98,0.00013698,2]
[356596396,1742763034199,-500.0,0.00013698,2]
[356596397,1742763034210,-545.54,0.00013698,2]
[356596398,1742763034219,-500.0,0.00013698,2]
[356596399,1742763034229,-5487.39,0.00013698,2]
[356596400,1742763034238,-500.0,0.00013698,2]
[356596401,1742763034248,-500.0,0.00013698,2]
[356596402,1742763034257,-721.25,0.00013698,2]
[356596403,1742763034267,-500.0,0.00013698,2]
[356596404,1742763034276,-500.0,0.00013698,2]
[356596405,1742763034286,-1217.86,0.00013698,2]
[356596406,1742763034295,-837.9,0.00013698,2]
[356596407,1742763034305,-905.89,0.00013698,2]
[356596408,1742763034315,-500.0,0.00013698,2]
[356596409,1742763034324,-3649.12,0.00013698,2]
[356596410,1742763034334,-733.43,0.00013698,2]
[356596411,1742763034344,-500.0,0.00013698,2]
[356596412,1742763034353,-500.0,0.00013698,2]
[356596413,1742763034363,-500.0,0.00013698,2]
[356596414,1742763034372,-500.0,0.00013698,2]
[356596415,1742763034382,-876.82,0.00013698,2]
[356596416,1742763034392,-500.0,0.00013698,2]
[356596417,1742763034624,-500.0,0.00013698,2]
[356596418,1742763034635,-4121.07,0.00013698,2]
[356596419,1742763034645,-715.38,0.00013698,2]
[356596420,1742763034654,-615.22,0.00013698,2]
[356596421,1742763034664,-830.76,0.00013698,2]
[356596422,1742763034673,-500.0,0.00013698,2]
[356596423,1742763034682,-500.0,0.00013698,2]
[356596424,1742763034692,-1079.46,0.00013698,2]
[356596425,1742763034702,-500.0,0.00013698,2]
[356596426,1742763034713,-1270.89,0.00013698,2]
[356596427,1742763034722,-15994.95,0.00013698,2]
[356596428,1742763034731,-1475.1,0.00013698,2]
[356596429,1742763034741,-500.0,0.00013698,2]
[356596430,1742763034751,-500.0,0.00013698,2]
[356596431,1742763034760,-1820.98,0.00013698,2]
[356596432,1742763034769,-1872.68,0.00013698,2]
[356596433,1742763034780,-500.0,0.00013698,2]
[356596434,1742763034790,-665.78032,0.00013699,2]
[356596435,1742763034800,-194.76706403,0.00013699,2]
[356596436,1742763034809,-500.0,0.00013699,2]
[356596437,1742763034820,-500.0,0.00013699,2]
[356596438,1742763034829,-500.0,0.00013699,2]
[356596439,1742763034838,-500.0,0.00013699,2]
[356596440,1742763034849,-500.0,0.00013699,2]
[356596441,1742763034858,-500.0,0.00013699,2]
[356596442,1742763034869,-500.0,0.00013699,2]
[356596443,1742763034878,-500.0,0.00013699,2]
[356596444,1742763034887,-500.0,0.00013699,2]
[356596445,1742763034896,-500.0,0.00013699,2]
[356596446,1742763034905,-500.0,0.00013699,2]
[356596447,1742763034918,-171.7196036,0.00013699,2]
[356596448,1742763034928,-500.0,0.00013699,2]
[356596449,1742763034937,-500.0,0.00013699,2]
[356596450,1742763034946,-500.0,0.00013699,2]
[356596451,1742763034955,-500.0,0.00013699,2]
[356596452,1742763034966,-500.0,0.00013699,2]
[356596453,1742763034975,-500.0,0.00013699,2]
[356596454,1742763034985,-499.99999999,0.00013699,2]
[356596455,1742763034997,-541.0,0.00013727,2]
[356596456,1742763035007,-1915.0,0.00013727,2]
[356596457,1742763035017,-2264.0,0.00013727,2]
[356596458,1742763035027,-622.2,0.00013745,2]
[356596459,1742763035035,-152.0,0.00013765,2]
[356596460,1742763035045,-645.2214,0.000138,2]
[356596461,1742763035054,-420.0,0.00013818,2]
[356596462,1742763035063,-20646.83086129,0.00013832,2]
[356596463,1742763035072,-669.0945918,0.00013855,2]
[356596464,1742763035081,-1020.28574961,0.0001391,2]
[356596465,1742763035092,-500.0,0.00013972,2]
[356596466,1742763035101,-500.0,0.00013972,2]
[356596467,1742763035111,-500.0,0.00013972,2]
[356596468,1742763035120,-500.0,0.00013972,2]
[356596469,1742763035129,-500.0,0.00013972,2]
[356596470,1742763035138,-500.0,0.00013972,2]
[356596471,1742763035147,-500.0,0.00013972,2]
[356596472,1742763035156,-500.0,0.00013972,2]
[356596473,1742763035166,-666.96,0.00013972,2]
[356596474,1742763035174,-500.0,0.00013972,2]
[356596475,1742763035184,-500.0,0.00013972,2]
[356596476,1742763035192,-500.0,0.00013972,2]
[356596477,1742763035201,-500.0,0.00013972,2]
[356596478,1742763035210,-500.0,0.00013972,2]
[356596479,1742763035219,-500.0,0.00013972,2]
[356596480,1742763035228,-500.0,0.00013972,2]
[356596481,1742763035237,-500.0,0.00013972,2]
[356596482,1742763035246,-172.54611825,0.00013972,2]
[356596483,1742763035256,-500.0,0.00013972,2]
[356596484,1742763035265,-500.0,0.00013972,2]
[356596485,1742763035274,-500.0,0.00013972,2]
[356596486,1742763035284,-500.0,0.00013972,2]
[356596487,1742763035292,-500.0,0.00013972,2]
[356596488,1742763035301,-500.0,0.00013972,2]
[356596489,1742763035311,-535.59,0.00013972,2]
[356596490,1742763035320,-500.0,0.00013972,2]
[356596491,1742763035329,-583.92,0.00013972,2]
[356596492,1742763035337,-1037.88,0.00013972,2]
[356596493,1742763035346,-500.0,0.00013972,2]
[356596494,1742763035355,-630.94,0.00013972,2]
[356596495,1742763035364,-500.0,0.00013972,2]
[356596496,1742763035373,-500.0,0.00013972,2]
[356596497,1742763035383,-500.0,0.00013972,2]
[356596498,1742763035392,-500.0,0.00013972,2]
[356596499,1742763035401,-701.21,0.00013972,2]
[356596500,1742763035410,-500.0,0.00013972,2]
[356596501,1742763035419,-500.0,0.00013972,2]
[356596502,1742763035429,-500.0,0.00013972,2]
[356596503,1742763035438,-500.0,0.00013972,2]
[356596504,1742763035447,-574.01,0.00013972,2]
[356596505,1742763035456,-500.0,0.00013972,2]
[356596506,1742763035465,-705.63,0.00013972,2]
[356596507,1742763035474,-1126.35,0.00013972,2]
[356596508,1742763035483,-500.0,0.00013972,2]
[356596509,1742763035493,-500.0,0.00013972,2]
[356596510,1742763035502,-602.45,0.00013972,2]
[356596511,1742763035511,-500.0,0.00013972,2]
[356596512,1742763035521,-500.0,0.00013972,2]
[356596513,1742763035530,-500.0,0.00013972,2]
[356596514,1742763035540,-1369.5,0.00013972,2]
[356596515,1742763035549,-750.63,0.00013972,2]
[356596516,1742763035558,-500.0,0.00013972,2]
[356596517,1742763035568,-500.0,0.00013972,2]
[356596518,1742763035577,-500.0,0.00013972,2]
[356596519,1742763035587,-1788.52,0.00013972,2]
[356596520,1742763035597,-500.0,0.00013972,2]
[356596521,1742763035606,-500.0,0.00013972,2]
[356596522,1742763035615,-1617.99,0.00013972,2]
[356596523,1742763035625,-500.0,0.00013972,2]
[356596524,1742763035634,-500.0,0.00013972,2]
[356596525,1742763035643,-500.0,0.00013972,2]
[356596526,1742763035652,-500.0,0.00013972,2]
[356596527,1742763035661,-500.0,0.00013972,2]
[356596528,1742763035671,-219.8427947,0.00013972,2]
[356596529,1742763035680,-500.0,0.00013972,2]
[356596530,1742763035690,-500.0,0.00013972,2]
[356596531,1742763035699,-500.0,0.00013972,2]
[356596532,1742763035709,-500.0,0.00013972,2]
[356596533,1742763035718,-500.0,0.00013972,2]
[356596534,1742763035728,-570.87,0.00013972,2]
[356596535,1742763035737,-508.78,0.00013972,2]
[356596536,1742763035749,-500.0,0.00013972,2]
[356596537,1742763035759,-500.0,0.00013972,2]
[356596538,1742763035769,-500.0,0.00013972,2]
[356596539,1742763035778,-500.0,0.00013972,2]
[356596540,1742763035788,-500.0,0.00013972,2]
[356596541,1742763035798,-500.0,0.00013972,2]
[356596542,1742763035807,-500.0,0.00013972,2]
[356596543,1742763035816,-500.0,0.00013972,2]
[356596544,1742763035827,-500.0,0.00013972,2]
[356596545,1742763035836,-500.0,0.00013972,2]
[356596546,1742763035846,-545.10998262,0.00013972,2]
[356596547,1742763035855,-518.05,0.00013972,2]
[356596548,1742763035865,-500.0,0.00013972,2]
[356596549,1742763035875,-716.72,0.00013972,2]
[356596550,1742763035884,-557.86,0.00013972,2]
[356596551,1742763035895,-754.39,0.00013972,2]
[356596552,1742763035905,-500.0,0.00013972,2]
[356596553,1742763035915,-500.0,0.00013972,2]
[356596554,1742763035926,-500.0,0.00013972,2]
[356596555,1742763035935,-1410.38,0.00013972,2]
[356596556,1742763035944,-500.0,0.00013972,2]
[356596557,1742763035953,-500.0,0.00013972,2]
[356596558,1742763035963,-5069.32,0.00013972,2]
[356596559,1742763035971,-500.0,0.00013972,2]
[356596560,1742763035980,-500.0,0.00013972,2]
[356596561,1742763035989,-2448.54,0.00013972,2]
[356596562,1742763035998,-500.0,0.00013972,2]
[356596563,1742763036008,-10600.33,0.00013972,2]
[356596564,1742763036018,-443.10594839,0.00013972,2]
[356596565,1742763036027,-3532.6,0.00013972,2]
[356596566,1742763036036,-6551.91,0.00013972,2]
[356596567,1742763036045,-615.15,0.00013972,2]
[356596568,1742763036054,-513.9,0.00013972,2]
[356596569,1742763036063,-3430.67,0.00013972,2]
[356596570,1742763036073,-1301.21,0.00013972,2]
[356596571,1742763036083,-500.0,0.00013972,2]
[356596572,1742763036092,-500.0,0.00013972,2]
[356596573,1742763036101,-500.0,0.00013972,2]
[356596574,1742763036110,-1434.57,0.00013972,2]
[356596575,1742763036119,-800.74,0.00013972,2]
[356596576,1742763036128,-1529.88,0.00013972,2]
[356596577,1742763036137,-582.13,0.00013972,2]
[356596578,1742763036146,-500.86,0.00013972,2]
[356596579,1742763036155,-1160.93,0.00013972,2]
[356596580,1742763036164,-500.0,0.00013972,2]
[356596581,1742763036173,-500.0,0.00013972,2]
[356596582,1742763036182,-137742.45,0.00013972,2]
[356596583,1742763036191,-500.0,0.00013972,2]
[356596584,1742763036201,-562.48404133,0.00013972,2]
[356596585,1742763036210,-500.0,0.00013972,2]
[356596586,1742763036219,-13871.8,0.00013972,2]
[356596587,1742763036230,-500.0,0.00013972,2]
[356596588,1742763036239,-5251.71,0.00013972,2]
[356596589,1742763036248,-515.48,0.00013972,2]
[356596590,1742763036258,-1423.36,0.00013972,2]
[356596591,1742763036267,-500.0,0.00013972,2]
[356596592,1742763036276,-500.0,0.00013972,2]
[356596593,1742763036286,-9097.7,0.00013972,2]
[356596594,1742763036296,-500.0,0.00013972,2]
[356596595,1742763036307,-500.0,0.00013972,2]
[356596596,1742763036318,-1004.14,0.00013972,2]
[356596597,1742763036328,-500.0,0.00013972,2]
[356596598,1742763036338,-2853.25,0.00013972,2]
[356596599,1742763036347,-500.0,0.00013972,2]
[356596600,1742763036356,-2173.54,0.00013972,2]
[356596601,1742763036366,-500.0,0.00013972,2]
[356596602,1742763036375,-2612.54,0.00013972,2]
[356596603,1742763036385,-500.0,0.00013972,2]
[356596604,1742763036396,-500.0,0.00013972,2]
[356596605,1742763036407,-503.29389039,0.00013972,2]
[356596654,1742763052252,500.0,0.00012496,2]
[356596657,1742764025120,-177.10636203,0.00012432,2]
[356596658,1742764025147,-3476.22899091,0.00012685,2]
[356596660,1742764050089,-4791.35686369,0.00012685,2]
[356596661,1742764050112,-300.0,0.00013597,2]
[356596662,1742764050138,-299.29894274,0.00013597,2]
[356596663,1742764050160,-244.93822164,0.00013598,2]
[356596664,1742764050181,-63.97438705,0.00013598,2]
[356596687,1742764232698,-3000.0,0.00013598,2]
[356596688,1742764232708,-300.0,0.00013672,2]
[356596689,1742764232718,-273.58974306,0.00013673,2]
[356596690,1742764232727,-500.0,0.00013673,2]
[356596691,1742764232736,-500.0,0.00013673,2]
[356596692,1742764232745,-391.34764417,0.00013673,2]
[356596693,1742764232754,-500.0,0.00013673,2]
[356596695,1742764232763,-500.0,0.00013673,2]
[356596697,1742764232772,-500.0,0.00013673,2]
[356596698,1742764232782,-500.0,0.00013673,2]
[356596699,1742764232791,-500.0,0.00013673,2]
[356596700,1742764232800,-151.0,0.0001369,2]
[356596701,1742764232809,-1000.0,0.0001369,2]
[356596702,1742764232819,-600.0,0.0001369,2]
[356596703,1742764232828,-332.04534798,0.00013697,2]
[356596704,1742764232837,-500.0,0.00013698,2]
[356596705,1742764232846,-500.0,0.00013698,2]
[356596706,1742764232855,-500.0,0.00013698,2]
[356596707,1742764232864,-526.18,0.00013698,2]
[356596708,1742764232874,-500.0,0.00013698,2]
[356596709,1742764232883,-500.0,0.00013698,2]
[356596710,1742764232893,-500.0,0.00013698,2]
[356596711,1742764232902,-500.0,0.00013698,2]
[356596712,1742764232911,-500.0,0.00013698,2]
[356596713,1742764232921,-523.3,0.00013698,2]
[356596714,1742764232930,-432.59193715,0.00013698,2]
[356596715,1742764232939,-500.0,0.00013698,2]
[356596716,1742764232949,-500.0,0.00013698,2]
[356596717,1742764232958,-500.0,0.00013698,2]
[356596718,1742764232968,-500.0,0.00013698,2]
[356596719,1742764232978,-154.913141,0.00013698,2]
[356596720,1742764232987,-500.0,0.00013698,2]
[356596721,1742764232997,-753.18,0.00013698,2]
[356596722,1742764233007,-578.36,0.00013698,2]
[356596723,1742764233016,-500.0,0.00013698,2]
[356596724,1742764233026,-500.0,0.00013698,2]
[356596725,1742764233036,-500.0,0.00013698,2]
[356596726,1742764233046,-271.89750313,0.00013698,2]
[356596727,1742764233056,-535.26,0.00013698,2]
[356596728,1742764233066,-500.0,0.00013698,2]
[356596729,1742764233075,-500.0,0.00013698,2]
[356596730,1742764233085,-500.0,0.00013698,2]
[356596731,1742764233094,-500.0,0.00013698,2]
[356596732,1742764233104,-500.0,0.00013698,2]
[356596733,1742764233114,-646.83,0.00013698,2]